[Event "Satka Autumn 2018"]
[Site "Satka"]
[Date "2018.09.12"]
[Round "2"]
[White "Kovanova, Baira"]
[Black "Filippova, Darya"]
[Result "1/2-1/2"]
[ECO "B11"]
[WhiteElo "2363"]
[BlackElo "2061"]
[Annotator "NA"]
[PlyCount "66"]
[EventDate "2018.09.11"]
[EventType "swiss"]
[EventCountry "RUS"]
[SourceTitle "playchess.com"]
[Source "ChessBase"]
[SourceQuality "1"]
[TimeControl "40/5400+30:1800+30"]

1. e4 {[%emt 0:00:00]} c6 {[%emt 0:00:00]} 2. Nc3 {[%emt 0:00:00]} d5 {[%emt 0:00:00]} 3. Nf3 {[%emt 0:00:00]} Bg4 {[%emt 0:02:04]} 4. h3 {[%emt 0:00:00]} Bxf3 {[%emt 0:00:08]} 5. Qxf3 {[%emt 0:00:00]} Nf6 {[%emt 0:00:29]} 6. Be2 {[%emt 0:00:35]} g6 {[%emt 0:10:55] LiveBook: 3 Partien} 7. e5 {[%emt 0:09:05]} ({Günstiger ist} 7. h4 $14) 7... Nfd7 $1 {[%emt 0:00:49]} 8. d4 {[%emt 0:01:52]} e6 {[%emt 0:02:20]} 9. Qg3 {[%emt 0:06:52]} Qb6 {[%emt 0:08:59]} 10. Qf4 {[%emt 0:05:28]} Bg7 {[%emt 0:03:35]} 11. O-O {[%emt 0:03:54]} O-O {[%emt 0:02:37]} 12. Na4 {[%emt 0:01:24]} Qc7 {[%emt 0:01:37]} 13. b3 $17 {[%emt 0:02:20]} (13. b4 $11 {keeps the balance.}) 13... b5 {[%emt 0:08:11]} 14. Nc3 {[%emt 0:01:58]} b4 {[%emt 0:01:02]} 15. Na4 {[%emt 0:02:11]} c5 {[%emt 0:00:32]} 16. c3 {[%emt 0:01:59]} Nc6 {[%emt 0:14:21]} 17. dxc5 {[%emt 0:16:18]} Bxe5 {[%emt 0:01:07]} 18. Qd2 {[%emt 0:05:56]} Nxc5 {[%emt 0:06:32]} 19. Bb2 {[%emt 0:06:43]} Nxa4 {[%emt 0:02:33]} 20. bxa4 {[%emt 0:00:02]} bxc3 {[%emt 0:00:50]} 21. Bxc3 {[%emt 0:00:02]} Bxc3 {[%emt 0:01:12]} 22. Qxc3 {[%emt 0:00:01]} Qe5 {[%emt 0:00:37]} 23. Qxc6 {[%emt 0:00:28]} Qxe2 {[%emt 0:00:09]} 24. Rfe1 {[%emt 0:04:37]} Qd2 {[%emt 0:00:59]} 25. Qa6 {[%emt 0:01:57]} Rfc8 {[%emt 0:05:56]} 26. Rad1 {[%emt 0:05:17]} Qf4 {[%emt 0:01:04]} 27. g3 {[%emt 0:01:25]} Qc4 {[%emt 0:00:36]} 28. Rxe6 {[%emt 0:02:51]} fxe6 {[%emt 0:05:34]} 29. Qxe6+ {[%emt 0:00:09]} Kh8 {[%emt 0:00:07]} 30. Qf6+ {[%emt 0:00:06]} Kg8 {[%emt 0:00:06]} 31. Qe6+ {[%emt 0:00:04]} Kh8 {[%emt 0:00:05]} 32. Qf6+ {[%emt 0:00:05]} Kg8 {[%emt 0:00:05]} 33. Qe6+ {[%emt 0:00:05]} Kh8 {[%emt 0:00:06]} 1/2-1/2

[Event "Satka Autumn 2018"]
[Site "Satka"]
[Date "2018.09.12"]
[Round "2"]
[White "Makarenko, Alexandra"]
[Black "Sosnina, Ekaterina"]
[Result "1-0"]
[ECO "B01"]
[WhiteElo "2247"]
[BlackElo "1955"]
[Annotator "NA"]
[PlyCount "45"]
[EventDate "2018.09.11"]
[EventType "swiss"]
[EventCountry "RUS"]
[SourceTitle "playchess.com"]
[Source "ChessBase"]
[SourceQuality "1"]
[TimeControl "40/5400+30:1800+30"]

1. e4 {[%emt 0:00:00]} d5 {[%emt 0:00:00]} 2. exd5 {[%emt 0:00:00]} Nf6 {[%emt 0:00:00]} 3. Nf3 {[%emt 0:00:00]} Bg4 {[%emt 0:00:00]} 4. c4 {[%emt 0:00:00]} c6 {[%emt 0:18:14]} 5. Nc3 {[%emt 0:01:15]} a6 {[%emt 0:10:22]} 6. h3 {[%emt 0:09:43]} Bh5 {[%emt 0:00:53]} ({Black should play} 6... Bxf3 7. Qxf3 cxd5) 7. Be2 {[%emt 0:01:38]} cxd5 {[%emt 0:03:19]} 8. cxd5 {[%emt 0:00:10]} Nxd5 {[%emt 0:00:57] [#]} 9. Qb3 $1 {[%emt 0:00:40]} e6 {[%emt 0:07:47]} (9... Nxc3 $16 {keeps fighting.} 10. dxc3 (10. bxc3 Nd7 $16) 10... Qc8) 10. Qxb7 $18 {[%emt 0:04:39]} Nb4 {[%emt 0:13:49]} 11. Ne5 {[%emt 0:05:40]} Nd7 {[%emt 0:20:37]} 12. Nxd7 {[%emt 0:04:15]} Nc2+ {[%emt 0:00:11]} 13. Kd1 {[%emt 0:01:05]} Nxa1 {[%emt 0:01:55]} 14. Bxh5 {[%emt 0:00:53]} Be7 {[%emt 0:00:32]} 15. Nb6 {[%emt 0:06:50]} O-O {[%emt 0:01:55]} 16. Nxa8 {[%emt 0:00:27]} Qa5 {[%emt 0:01:49]} 17. Bf3 {[%emt 0:01:12]} Bf6 {[%emt 0:01:40]} 18. b4 {[%emt 0:01:12]} Qd8 {[%emt 0:02:22]} 19. Bb2 {[%emt 0:01:11]} Qd4 {[%emt 0:00:57]} 20. Qe4 {[%emt 0:01:00]} Qxf2 {[%emt 0:00:20]} 21. Bxa1 {[%emt 0:00:18]} Rd8 {[%emt 0:00:42]} 22. Qc2 {[%emt 0:02:43]} Bg5 {[%emt 0:00:30]} 23. Ne4 {[%emt 0:00:25]} 1-0

[Event "Satka Autumn 2018"]
[Site "Satka"]
[Date "2018.09.12"]
[Round "2"]
[White "Semenova, Elena"]
[Black "Mikheeva, Galina"]
[Result "1-0"]
[ECO "C65"]
[WhiteElo "2219"]
[BlackElo "1767"]
[Annotator "NA"]
[PlyCount "71"]
[EventDate "2018.09.11"]
[EventType "swiss"]
[EventCountry "RUS"]
[SourceTitle "playchess.com"]
[Source "ChessBase"]
[SourceQuality "1"]
[TimeControl "40/5400+30:1800+30"]

1. e4 {[%emt 0:00:00]} e5 {[%emt 0:00:00]} 2. Nf3 {[%emt 0:00:00]} Nc6 {[%emt 0:00:00]} 3. Bb5 {[%emt 0:00:00]} Nf6 {[%emt 0:00:00]} 4. d3 {[%emt 0:00:00]} Bc5 {[%emt 0:00:23]} 5. c3 {[%emt 0:00:03]} d6 {[%emt 0:02:28]} 6. O-O {[%emt 0:01:54]} O-O {[%emt 0:01:08]} 7. Bg5 {[%emt 0:00:19]} h6 {[%emt 0:01:00]} 8. Bh4 {[%emt 0:00:05]} Bg4 {[%emt 0:08:19] LiveBook: 4 Games} 9. h3 {[%emt 0:03:21]} Bh5 {[%emt 0:00:05]} 10. g4 {[%emt 0:07:43]} Bg6 {[%emt 0:00:06]} 11. Nbd2 {[%emt 0:08:34]} Ne7 $14 {[%emt 0:21:04]} 12. Bxf6 {[%emt 0:22:42]} gxf6 {[%emt 0:00:07]} 13. Nh4 {[%emt 0:02:45]} Kg7 {[%emt 0:05:20]} 14. Kg2 {[%emt 0:10:49]} c6 {[%emt 0:01:52]} 15. Ba4 {[%emt 0:00:06]} d5 {[%emt 0:00:57]} 16. Qe2 {[%emt 0:01:21]} Qc7 {[%emt 0:04:05]} 17. Bb3 {[%emt 0:06:02]} Rad8 {[%emt 0:04:09]} 18. Rad1 {[%emt 0:00:17]} Rh8 {[%emt 0:08:50]} 19. Rg1 {[%emt 0:00:26]} Kf8 {[%emt 0:03:54]} 20. Qf3 {[%emt 0:01:41]} Qd6 {[%emt 0:00:49]} 21. Nf1 {[%emt 0:06:52]} h5 {[%emt 0:11:19]} 22. Rh1 {[%emt 0:00:56]} hxg4 {[%emt 0:09:48]} 23. hxg4 {[%emt 0:00:12]} Kg7 {[%emt 0:00:04]} 24. Ng3 {[%emt 0:02:26]} Rdg8 {[%emt 0:01:03]} 25. Rh3 {[%emt 0:04:14]} a5 {[%emt 0:03:12]} 26. Rdh1 {[%emt 0:02:33]} dxe4 {[%emt 0:01:58]} 27. dxe4 {[%emt 0:03:53]} Qd2 {[%emt 0:01:09]} 28. Nhf5+ {[%emt 0:04:31]} Bxf5 {[%emt 0:00:55]} 29. Nxf5+ {[%emt 0:00:30]} Nxf5 {[%emt 0:00:05]} 30. Qxf5 {[%emt 0:00:11]} Rxh3 {[%emt 0:01:04]} 31. Rxh3 {[%emt 0:00:04]} Kf8 {[%emt 0:03:08]} 32. Rh7 {[%emt 0:00:45]} Rg7 {[%emt 0:05:17]} 33. Qc8+ {[%emt 0:02:49]} Ke7 {[%emt 0:00:12]} 34. Qc7+ {[%emt 0:00:32]} Kf8 {[%emt 0:00:40]} 35. Rh8+ {[%emt 0:00:05]} Rg8 {[%emt 0:00:05]} 36. Qxf7# {[%emt 0:00:05]} 1-0

[Event "Satka Autumn 2018"]
[Site "Satka"]
[Date "2018.09.12"]
[Round "2"]
[White "Trapeznikova, Darya"]
[Black "Svetlova, Ksenia"]
[Result "1-0"]
[ECO "A52"]
[WhiteElo "2107"]
[BlackElo "1696"]
[Annotator "NA"]
[PlyCount "113"]
[EventDate "2018.09.11"]
[EventType "swiss"]
[EventCountry "RUS"]
[SourceTitle "playchess.com"]
[Source "ChessBase"]
[SourceQuality "1"]
[TimeControl "40/5400+30:1800+30"]

1. d4 {[%emt 0:00:00]} Nf6 {[%emt 0:00:00]} 2. c4 {[%emt 0:00:00]} e5 {[%emt 0:00:00]} 3. dxe5 {[%emt 0:00:00]} Ng4 {[%emt 0:00:00]} 4. Bf4 {[%emt 0:00:11]} Bb4+ {[%emt 0:00:00]} 5. Nd2 {[%emt 0:00:08]} Nc6 {[%emt 0:00:15]} 6. Ngf3 {[%emt 0:00:15]} Qe7 {[%emt 0:00:35]} 7. a3 {[%emt 0:00:31]} Bxd2+ {[%emt 0:02:39]} 8. Qxd2 {[%emt 0:00:24]} Ngxe5 {[%emt 0:00:23]} 9. Nxe5 {[%emt 0:00:09]} Nxe5 {[%emt 0:00:48]} 10. e3 {[%emt 0:00:37]} O-O {[%emt 0:00:31] LiveBook: 24 Games} 11. c5 {[%emt 0:01:13]} Re8 {[%emt 0:11:12]} 12. Rc1 {[%emt 0:04:48]} Qf6 {[%emt 0:03:01]} 13. Be2 {[%emt 0:03:04]} b6 {[%emt 0:08:24]} 14. cxb6 {[%emt 0:03:18]} Qxb6 {[%emt 0:10:25]} 15. O-O {[%emt 0:01:42]} Bb7 $16 {[%emt 0:04:33]} 16. Bxe5 {[%emt 0:06:19]} Rxe5 {[%emt 0:00:18]} 17. Qxd7 {[%emt 0:00:42]} Qg6 {[%emt 0:06:08]} 18. f3 {[%emt 0:14:27]} Rxe3 {[%emt 0:06:35]} 19. Bc4 {[%emt 0:01:14]} Rae8 {[%emt 0:08:13]} 20. Qxc7 {[%emt 0:05:19]} Bxf3 {[%emt 0:08:36]} 21. Bxf7+ {[%emt 0:03:08]} Qxf7 {[%emt 0:00:04]} 22. Qxf7+ {[%emt 0:00:05]} Kxf7 {[%emt 0:00:04]} 23. Rxf3+ {[%emt 0:01:08]} Rxf3 {[%emt 0:00:31]} 24. gxf3 {[%emt 0:01:35]} Re3 {[%emt 0:04:41]} 25. Kf2 {[%emt 0:14:58]} Rb3 {[%emt 0:00:08]} 26. Rc7+ {[%emt 0:00:15]} Kf6 {[%emt 0:00:59]} 27. Rxa7 {[%emt 0:00:08]} Rxb2+ {[%emt 0:00:05]} 28. Kg3 {[%emt 0:00:04]} h6 {[%emt 0:09:44]} 29. h4 {[%emt 0:03:59]} Rb1 {[%emt 0:00:40]} 30. Ra6+ {[%emt 0:01:34]} Kf5 {[%emt 0:06:13]} 31. Ra5+ {[%emt 0:00:08]} Kf6 {[%emt 0:00:13]} 32. h5 {[%emt 0:04:14]} Ra1 {[%emt 0:03:29]} 33. Kf4 {[%emt 0:00:49]} Rh1 {[%emt 0:02:29]} 34. a4 {[%emt 0:05:53]} Rh4+ {[%emt 0:00:46]} 35. Kg3 {[%emt 0:07:51]} Rh1 {[%emt 0:00:11]} 36. Rb5 {[%emt 0:03:54]} Ra1 {[%emt 0:00:36]} 37. a5 {[%emt 0:00:21]} Ra4 {[%emt 0:01:51]} 38. f4 {[%emt 0:07:35]} Ra1 {[%emt 0:00:42]} 39. Kg4 {[%emt 0:00:36]} Rg1+ {[%emt 0:00:09]} 40. Kf3 {[%emt 0:00:00]} Ra1 {[%emt 0:00:00]} 41. Ke4 {[%emt 0:00:57]} Ra4+ {[%emt 0:01:37]} 42. Kd5 {[%emt 0:01:02]} Rxf4 {[%emt 0:02:07]} 43. Kc6 {[%emt 0:00:17]} g5 {[%emt 0:00:46]} 44. a6 {[%emt 0:04:47]} Ra4 {[%emt 0:01:54]} 45. Kb7 {[%emt 0:00:19]} g4 {[%emt 0:00:26]} 46. a7 {[%emt 0:00:34]} g3 {[%emt 0:00:30]} 47. a8=Q {[%emt 0:03:25]} Rxa8 {[%emt 0:00:08]} 48. Kxa8 {[%emt 0:00:02]} g2 {[%emt 0:00:06]} 49. Rb1 {[%emt 0:00:02]} Kg5 {[%emt 0:00:05]} 50. Rg1 {[%emt 0:00:05]} Kxh5 {[%emt 0:00:06]} 51. Rxg2 {[%emt 0:00:01]} Kh4 {[%emt 0:00:09]} 52. Kb7 {[%emt 0:00:03]} Kh3 {[%emt 0:00:34]} 53. Rg6 {[%emt 0:00:16]} h5 {[%emt 0:00:08]} 54. Kc6 {[%emt 0:00:02]} h4 {[%emt 0:00:19]} 55. Kd5 {[%emt 0:00:04]} Kh2 {[%emt 0:00:03]} 56. Ke4 {[%emt 0:00:06]} h3 {[%emt 0:00:23]} 57. Kf3 {[%emt 0:00:07]} 1-0

[Event "Satka Autumn 2018"]
[Site "Satka"]
[Date "2018.09.12"]
[Round "2"]
[White "Mukhina, Jana"]
[Black "Charochkina, Daria"]
[Result "1/2-1/2"]
[ECO "B31"]
[WhiteElo "2072"]
[BlackElo "2336"]
[Annotator "NA"]
[PlyCount "74"]
[EventDate "2018.09.11"]
[EventType "swiss"]
[EventCountry "RUS"]
[SourceTitle "playchess.com"]
[Source "ChessBase"]
[SourceQuality "1"]
[TimeControl "40/5400+30:1800+30"]

1. e4 {[%emt 0:00:00]} c5 {[%emt 0:00:00]} 2. Nf3 {[%emt 0:00:00]} Nc6 {[%emt 0:00:00]} 3. Bb5 {[%emt 0:00:00]} g6 {[%emt 0:00:00]} 4. Bxc6 {[%emt 0:00:00]} bxc6 {[%emt 0:00:00] LiveBook: 1473 Games} 5. O-O {[%emt 0:00:00]} Bg7 {[%emt 0:00:00]} 6. Re1 {[%emt 0:00:09]} Nh6 {[%emt 0:00:02]} 7. c3 {[%emt 0:00:18]} O-O {[%emt 0:00:45]} 8. h3 {[%emt 0:00:13]} f5 {[%emt 0:00:00]} 9. e5 {[%emt 0:00:17]} Nf7 {[%emt 0:00:00]} 10. d3 {[%emt 0:00:11]} Ba6 {[%emt 0:00:00]} 11. c4 {[%emt 0:03:16]} e6 {[%emt 0:00:07]} 12. h4 {[%emt 0:04:13]} h6 {[%emt 0:00:33]} 13. Be3 {[%emt 0:39:32]} g5 {[%emt 0:11:57]} 14. hxg5 {[%emt 0:01:33]} hxg5 {[%emt 0:00:04]} 15. Bxc5 {[%emt 0:01:15]} g4 $17 {[%emt 0:00:02]} 16. Bxf8 {[%emt 0:12:56]} Qxf8 {[%emt 0:00:07]} 17. Nh4 {[%emt 0:02:18]} Nxe5 {[%emt 0:01:17]} 18. Nc3 {[%emt 0:08:06]} c5 {[%emt 0:15:42]} 19. Rxe5 {[%emt 0:08:50]} Bxe5 {[%emt 0:00:11]} 20. Ng6 {[%emt 0:00:03]} Qf6 {[%emt 0:00:43]} 21. Nxe5 {[%emt 0:00:08]} Qxe5 {[%emt 0:00:03]} 22. Qd2 {[%emt 0:00:36]} f4 {[%emt 0:11:06]} 23. Re1 {[%emt 0:00:38]} Qf5 {[%emt 0:00:04]} 24. Ne4 {[%emt 0:01:46]} Rf8 {[%emt 0:07:06]} 25. Qa5 {[%emt 0:02:01]} Bb7 {[%emt 0:00:02]} 26. Nd6 {[%emt 0:00:53]} Qh5 {[%emt 0:00:11]} 27. Nxb7 {[%emt 0:03:11]} g3 {[%emt 0:00:50]} 28. Qxc5 {[%emt 0:00:56]} Qh2+ {[%emt 0:00:18]} 29. Kf1 {[%emt 0:00:01]} f3 {[%emt 0:04:17]} 30. gxf3 {[%emt 0:02:06]} g2+ {[%emt 0:24:26]} 31. Ke2 {[%emt 0:00:06]} g1=Q {[%emt 0:00:10]} 32. Rxg1+ {[%emt 0:00:22]} Qxg1 {[%emt 0:00:04]} 33. Nd6 {[%emt 0:04:08]} Qc1 {[%emt 0:00:56]} 34. Qe5 {[%emt 0:06:04]} Qc2+ {[%emt 0:02:44]} 35. Ke3 {[%emt 0:00:02]} Qc1+ {[%emt 0:00:57]} 36. Ke2 {[%emt 0:00:01]} Qc2+ {[%emt 0:00:21]} 37. Ke3 {[%emt 0:00:04]} Qc1+ {[%emt 0:00:04]} 1/2-1/2

[Event "Satka Autumn 2018"]
[Site "Satka"]
[Date "2018.09.12"]
[Round "2"]
[White "Mironenko, Galina"]
[Black "Schepetkova, Margarita"]
[Result "0-1"]
[ECO "D02"]
[WhiteElo "2021"]
[BlackElo "2238"]
[Annotator "NA"]
[PlyCount "130"]
[EventDate "2018.09.11"]
[EventType "swiss"]
[EventCountry "RUS"]
[SourceTitle "playchess.com"]
[Source "ChessBase"]
[SourceQuality "1"]
[TimeControl "40/5400+30:1800+30"]

1. d4 {[%emt 0:00:00]} d5 {[%emt 0:00:00]} 2. Nf3 {[%emt 0:00:00]} Nf6 {[%emt 0:00:00]} 3. c4 {[%emt 0:00:06]} c6 {[%emt 0:00:00]} 4. g3 {[%emt 0:00:12]} Bg4 {[%emt 0:00:11]} 5. Bg2 {[%emt 0:00:46] LiveBook: 65 Games D11: Slav Defence: 3 Nf3 sidelines and 3...Nf6 4 e3 Bg4} (5. Ne5 Bf5 6. cxd5 Qxd5 7. Nf3 Bxb1 8. Rxb1 Qxa2 9. Qc2 Na6 10. Bd2 e6 11. Bg2 Nb4 12. Qc1 Qa6 {1-0 (54) Dreev,A (2653)-Movsesian,S (2647) Riadh 2017}) 5... e6 {[%emt 0:00:16]} 6. h3 {[%emt 0:02:27]} Bf5 {[%emt 0:00:55]} 7. O-O {[%emt 0:01:40]} Bd6 {[%emt 0:00:51]} 8. Nc3 {[%emt 0:02:56]} O-O {[%emt 0:00:57]} 9. Nh4 $146 {[%emt 0:04:22]} ({Predecessor:} 9. cxd5 exd5 10. b3 Re8 11. Bb2 Qd7 12. Kh2 Na6 13. Re1 Re7 14. Nh4 Nb4 15. Rc1 Rae8 16. a3 Na6 17. Nxf5 Qxf5 18. b4 Qxf2 19. Qd3 Nh5 {0-1 (19) Ferrua,P-Puricica,A Romania 2000}) 9... Be4 {[%emt 0:05:03]} 10. Bg5 {[%emt 0:07:15]} Bxg2 {[%emt 0:00:23]} 11. Kxg2 {[%emt 0:00:34]} Be7 {[%emt 0:03:21]} ({Black should try} 11... dxc4 $15 12. Bxf6 Qxf6) 12. Qd3 {[%emt 0:09:07]} Nbd7 {[%emt 0:02:15]} 13. Nf3 {[%emt 0:01:56]} h6 {[%emt 0:04:09]} 14. Bxf6 {[%emt 0:00:44]} Nxf6 {[%emt 0:00:21]} 15. e4 {[%emt 0:01:56]} dxe4 {[%emt 0:02:58]} 16. Nxe4 {[%emt 0:00:10]} Qb6 {[%emt 0:01:06]} (16... c5 $5) 17. Rfe1 $11 {[%emt 0:06:51]} Rfd8 {[%emt 0:02:44]} 18. Qc2 {[%emt 0:01:40]} Nxe4 {[%emt 0:01:22]} 19. Rxe4 {[%emt 0:00:32]} Bf6 {[%emt 0:00:12]} 20. c5 {[%emt 0:03:29]} Qa6 {[%emt 0:02:41]} 21. Qc3 {[%emt 0:04:09]} Rd5 {[%emt 0:00:44]} 22. Ne1 {[%emt 0:02:19]} b5 {[%emt 0:07:48]} 23. Nc2 {[%emt 0:01:25]} Rd7 {[%emt 0:00:32]} 24. f4 {[%emt 0:02:04]} Rad8 {[%emt 0:00:35]} 25. a3 {[%emt 0:01:04]} Qb7 {[%emt 0:02:07]} 26. Rd1 {[%emt 0:01:47]} Qc7 {[%emt 0:00:34]} 27. Ne3 {[%emt 0:03:17]} g6 {[%emt 0:01:36]} 28. h4 {[%emt 0:07:31]} Bg7 {[%emt 0:03:26]} 29. Nc2 {[%emt 0:01:45]} Re7 {[%emt 0:02:59]} 30. Qe1 {[%emt 0:04:02]} Qd7 {[%emt 0:02:44]} 31. Kf2 {[%emt 0:01:22]} Qe8 {[%emt 0:08:58]} 32. Qe2 {[%emt 0:04:20]} a5 {[%emt 0:01:18]} 33. g4 {[%emt 0:01:59]} f5 {[%emt 0:03:52]} 34. gxf5 {[%emt 0:01:13]} gxf5 {[%emt 0:00:05]} 35. Re3 {[%emt 0:00:12]} Bf6 {[%emt 0:00:21]} 36. Rh3 {[%emt 0:03:09]} Kh7 {[%emt 0:03:49]} 37. h5 {[%emt 0:02:01]} Rg7 {[%emt 0:02:07]} 38. Qe3 {[%emt 0:03:33]} Qg8 {[%emt 0:02:34]} 39. Qf3 {[%emt 0:00:26]} Rd5 {[%emt 0:01:03]} 40. Rd2 {[%emt 0:00:00]} Rg4 {[%emt 0:00:00]} 41. Ke3 {[%emt 0:12:28]} Rxf4 {[%emt 0:07:00]} 42. Qxf4 {[%emt 0:01:15]} Bg5 {[%emt 0:00:04]} 43. Rg3 {[%emt 0:00:09]} Bxf4+ {[%emt 0:00:12]} 44. Kxf4 {[%emt 0:00:06]} Qd8 {[%emt 0:01:12]} 45. Rh2 {[%emt 0:00:52]} Rd7 {[%emt 0:01:24]} 46. Re3 {[%emt 0:05:14]} Qg5+ {[%emt 0:00:40]} 47. Kf3 {[%emt 0:00:20]} Qg4+ {[%emt 0:00:11]} 48. Kf2 {[%emt 0:00:06]} Qf4+ {[%emt 0:01:48]} 49. Kg1 {[%emt 0:00:11]} Rxd4 {[%emt 0:00:35]} 50. Rhe2 {[%emt 0:01:15]} Rd7 {[%emt 0:02:32]} 51. Rxe6 {[%emt 0:01:13]} Rg7+ {[%emt 0:01:12]} 52. Rg6 {[%emt 0:00:16]} Rxg6+ {[%emt 0:01:36]} 53. hxg6+ {[%emt 0:00:08]} Kxg6 {[%emt 0:00:02]} 54. Re6+ {[%emt 0:00:27]} Kf7 {[%emt 0:00:28]} 55. Re3 {[%emt 0:00:21]} Qg4+ {[%emt 0:00:51]} 56. Kf2 {[%emt 0:00:15]} Qd1 {[%emt 0:00:28]} 57. Re2 {[%emt 0:00:44]} h5 {[%emt 0:00:30]} 58. Ne3 {[%emt 0:00:12]} Qd4 {[%emt 0:00:20]} 59. Kf3 {[%emt 0:00:08]} Qxc5 {[%emt 0:01:33]} 60. Rc2 {[%emt 0:00:07]} Qd4 {[%emt 0:00:15]} 61. Rh2 {[%emt 0:00:21]} f4 {[%emt 0:02:23]} 62. Nf5 {[%emt 0:01:30]} Qe5 {[%emt 0:04:50]} 63. Nh4 {[%emt 0:02:15]} Qe3+ {[%emt 0:00:28]} 64. Kg2 {[%emt 0:00:05]} Qg3+ {[%emt 0:00:36]} 65. Kh1 {[%emt 0:00:07]} f3 {[%emt 0:00:28]} 0-1

[Event "Satka Autumn 2018"]
[Site "Satka"]
[Date "2018.09.12"]
[Round "2"]
[White "Simakova, Elena"]
[Black "Voit, Daria"]
[Result "0-1"]
[ECO "B71"]
[WhiteElo "1935"]
[BlackElo "2369"]
[Annotator "NA"]
[PlyCount "48"]
[EventDate "2018.09.11"]
[EventType "swiss"]
[EventCountry "RUS"]
[SourceTitle "playchess.com"]
[Source "ChessBase"]
[SourceQuality "1"]
[TimeControl "40/5400+30:1800+30"]

{[%evp 8,26,35,30,48,20,18,15,81,1,52,6,10,-20,-16,-37,-26,-29,0,-21,-2]} 1. e4 {[%emt 0:00:00]} c5 {[%emt 0:00:00]} 2. Nf3 {[%emt 0:00:00]} d6 {[%emt 0:00:00]} 3. d4 {[%emt 0:00:00]} cxd4 {[%emt 0:00:00]} 4. Nxd4 {[%emt 0:00:00]} Nf6 {[%emt 0:00:07]} 5. Nc3 {[%emt 0:00:00]} g6 {[%emt 0:01:14]} 6. f4 {[%emt 0:02:25]} Nbd7 {[%emt 0:04:21]} 7. Be3 {[%emt 0:15:16]} Bg7 {[%emt 0:01:13]} (7... a6 $11 {remains equal.}) 8. Be2 {[%emt 0:01:54]} a6 {[%emt 0:00:58]} 9. O-O {[%emt 0:03:20]} O-O {[%emt 0:04:41]} 10. Bf3 {[%emt 0:06:21] LiveBook: 28 Games} e5 {[%emt 0:05:36]} 11. Nb3 {[%emt 0:07:12]} exf4 {[%emt 0:00:34]} 12. Bxf4 {[%emt 0:00:48]} Qb6+ {[%emt 0:00:14]} 13. Kh1 {[%emt 0:02:14]} Ne5 $11 {[%emt 0:00:13]} 14. Qd2 {[%emt 0:19:10]} Be6 {[%emt 0:03:41]} 15. Rad1 {[%emt 0:02:51]} Nc4 {[%emt 0:08:09]} 16. Qc1 {[%emt 0:06:34]} Rfd8 {[%emt 0:03:05]} 17. Bg5 {[%emt 0:06:22]} Rdc8 {[%emt 0:05:22]} 18. Rd3 {[%emt 0:10:39]} Nd7 {[%emt 0:04:17]} 19. Bh6 {[%emt 0:12:33]} Nxb2 {[%emt 0:05:00]} 20. Qxb2 {[%emt 0:01:18]} Bxh6 {[%emt 0:00:05]} 21. Nd5 {[%emt 0:00:50]} Bxd5 {[%emt 0:00:14]} 22. Rxd5 {[%emt 0:00:14]} Ne5 {[%emt 0:04:04]} 23. Re1 {[%emt 0:00:57]} Nxf3 {[%emt 0:00:28]} 24. gxf3 {[%emt 0:00:06]} Qf2 {[%emt 0:00:06]} 0-1

[Event "Satka Autumn 2018"]
[Site "Satka"]
[Date "2018.09.12"]
[Round "2"]
[White "Matsenko, Elena"]
[Black "Smirnova, Ekaterina"]
[Result "1/2-1/2"]
[ECO "D10"]
[WhiteElo "1854"]
[BlackElo "2202"]
[Annotator "NA"]
[PlyCount "79"]
[EventDate "2018.09.11"]
[EventType "swiss"]
[EventCountry "RUS"]
[SourceTitle "playchess.com"]
[Source "ChessBase"]
[SourceQuality "1"]
[TimeControl "40/5400+30:1800+30"]

1. c4 {[%emt 0:00:00]} c6 {[%emt 0:00:00]} 2. d4 {[%emt 0:00:00]} d5 {[%emt 0:00:00]} 3. cxd5 {[%emt 0:00:00]} cxd5 {[%emt 0:00:00]} 4. Bf4 {[%emt 0:00:00]} Nc6 {[%emt 0:00:02]} 5. e3 {[%emt 0:00:03]} Nf6 {[%emt 0:00:22]} 6. Nc3 {[%emt 0:00:18]} Bf5 {[%emt 0:01:37]} 7. Qb3 {[%emt 0:00:24]} Na5 {[%emt 0:01:34]} 8. Qa4+ {[%emt 0:00:17]} Bd7 {[%emt 0:00:15]} 9. Qc2 {[%emt 0:00:09]} Rc8 {[%emt 0:02:34]} 10. Bd3 {[%emt 0:00:20]} e6 {[%emt 0:00:13]} 11. Nf3 {[%emt 0:02:18]} Be7 {[%emt 0:00:29]} 12. h3 {[%emt 0:00:12] LiveBook: 58 Games} b5 {[%emt 0:02:29]} 13. a3 {[%emt 0:05:22]} Nc4 {[%emt 0:00:38]} 14. O-O {[%emt 0:01:46]} a5 {[%emt 0:05:13]} 15. Qe2 {[%emt 0:05:27]} O-O {[%emt 0:27:58]} 16. Ne5 $11 {[%emt 0:04:53]} Be8 {[%emt 0:10:12]} 17. Rfc1 {[%emt 0:02:16]} b4 {[%emt 0:02:30]} 18. axb4 {[%emt 0:03:16]} axb4 {[%emt 0:00:02]} 19. Nd1 {[%emt 0:00:59]} Nxe5 {[%emt 0:03:16]} 20. Bxe5 {[%emt 0:01:12]} Rxc1 {[%emt 0:07:27]} 21. Rxc1 {[%emt 0:00:10]} Ba4 {[%emt 0:01:43]} 22. f3 {[%emt 0:03:59]} Qb6 {[%emt 0:01:35]} 23. Bc7 {[%emt 0:03:00]} Qa7 {[%emt 0:02:41]} 24. Bf4 {[%emt 0:01:32]} Ne8 {[%emt 0:03:53]} 25. Nf2 {[%emt 0:06:18]} Bd6 {[%emt 0:01:44]} 26. Bxd6 {[%emt 0:02:30]} Nxd6 {[%emt 0:00:01]} 27. b3 {[%emt 0:09:11]} Bxb3 {[%emt 0:06:26]} 28. Qb2 {[%emt 0:00:16]} Bc4 {[%emt 0:01:59]} 29. Qxb4 {[%emt 0:00:53]} Bxd3 {[%emt 0:00:34]} 30. Qxd6 {[%emt 0:04:52]} Bc4 {[%emt 0:01:13]} 31. Rb1 {[%emt 0:01:32]} h6 {[%emt 0:02:16]} 32. Ng4 {[%emt 0:04:47]} Bd3 {[%emt 0:00:57]} 33. Qb6 {[%emt 0:01:17]} Qxb6 {[%emt 0:01:12]} 34. Rxb6 {[%emt 0:00:08]} Ra8 {[%emt 0:00:40]} 35. Ne5 {[%emt 0:02:12]} Bh7 {[%emt 0:01:44]} 36. Rb3 {[%emt 0:03:28]} f6 {[%emt 0:01:34]} 37. Nd7 {[%emt 0:00:30]} Bg6 {[%emt 0:00:35]} 38. Nc5 {[%emt 0:01:18]} Bf7 {[%emt 0:00:09]} 39. f4 {[%emt 0:02:23]} Re8 {[%emt 0:01:14]} 40. Kf2 {[%emt 0:00:00]} 1/2-1/2